lending/lending_fUSD_20240411
["ID","MTS","AMOUNT","RATE_DAILY","PERIOD"]
[322165974,1712860253693,-1691.23,0.0003041,2]
[322165975,1712860253703,-500.0,0.0003041,2]
[322165976,1712860253712,-500.0,0.0003041,2]
[322165977,1712860253722,-500.0,0.0003041,2]
[322165978,1712860253731,-500.0,0.0003041,2]
[322165979,1712860253740,-500.0,0.0003041,2]
[322165980,1712860253749,-775.6,0.0003041,2]
[322165981,1712860253759,-945.99,0.0003041,2]
[322165982,1712860253767,-500.0,0.0003041,2]
[322165983,1712860253777,-984.08,0.0003041,2]
[322165984,1712860253785,-500.0,0.0003041,2]
[322165985,1712860253795,-570.21,0.0003041,2]
[322165986,1712860253804,-500.0,0.0003041,2]
[322165987,1712860253814,-1148.14,0.0003041,2]
[322165988,1712860253823,-500.0,0.0003041,2]
[322165989,1712860253834,-500.0,0.0003041,2]
[322165990,1712860253843,-939.41,0.0003041,2]
[322165991,1712860253853,-1520.64,0.0003041,2]
[322165992,1712860253862,-500.0,0.0003041,2]
[322165993,1712860253871,-500.0,0.0003041,2]
[322165994,1712860253881,-1337.07,0.0003041,2]
[322165995,1712860253890,-914.46,0.0003041,2]
[322165996,1712860253900,-1606.81,0.0003041,2]
[322165997,1712860253909,-1871.67,0.0003041,2]
[322165998,1712860253917,-1286.91,0.0003041,2]
[322165999,1712860253926,-1632.71,0.0003041,2]
[322166000,1712860253934,-551.88,0.0003041,2]
[322166001,1712860253942,-552.06082924,0.0003041,2]
[322166002,1712860253951,-600.01,0.0003041,2]
[322166003,1712860253958,-1266.08,0.0003041,2]
[322166004,1712860253966,-727.31,0.0003041,2]
[322166005,1712860253976,-1328.09,0.0003041,2]
[322166006,1712860253986,-500.0,0.0003041,2]
[322166007,1712860253996,-500.0,0.0003041,2]
[322166008,1712860254005,-500.0,0.0003041,2]
[322166009,1712860254014,-2288.97,0.0003041,2]
[322166010,1712860254024,-3117.75,0.0003041,2]
[322166011,1712860254034,-1059.36,0.0003041,2]
[322166012,1712860254043,-500.0,0.0003041,2]
[322166013,1712860254052,-555.63,0.0003041,2]
[322166014,1712860254062,-832.54,0.0003041,2]
[322166015,1712860254071,-1136.76,0.0003041,2]
[322166016,1712860254081,-1283.51,0.0003041,2]
[322166017,1712860254090,-500.0,0.0003041,2]
[322166018,1712860254099,-872.5,0.0003041,2]
[322166019,1712860254108,-500.0,0.0003041,2]
[322166020,1712860254117,-500.0,0.0003041,2]
[322166021,1712860254127,-500.0,0.0003041,2]
[322166022,1712860254136,-616.45154253,0.0003041,2]
[322166023,1712860254146,-500.0,0.0003041,2]
[322166024,1712860254155,-1536.47,0.0003041,2]
[322166025,1712860254164,-1854.17,0.0003041,2]
[322166026,1712860254173,-1276.96,0.0003041,2]
[322166027,1712860254182,-500.0,0.0003041,2]
[322166028,1712860254190,-500.0,0.0003041,2]
[322166029,1712860254199,-500.0,0.0003041,2]
[322166030,1712860254208,-2113.38,0.0003041,2]
[322166031,1712860254217,-272.52422168,0.0003041,2]
[322166032,1712860254226,-500.0,0.0003041,2]
[322166033,1712860254235,-500.0,0.0003041,2]
[322166034,1712860254245,-500.0,0.0003041,2]
[322166035,1712860254253,-500.0,0.0003041,2]
[322166036,1712860254262,-500.0,0.0003041,2]
[322166037,1712860254271,-500.0,0.0003041,2]
[322166038,1712860254280,-1016.57,0.0003041,2]
[322166039,1712860254290,-726.11,0.0003041,2]
[322166040,1712860254299,-1068.57,0.0003041,2]
[322166041,1712860254309,-500.0,0.0003041,2]
[322166042,1712860254318,-500.0,0.0003041,2]
[322166043,1712860254327,-500.0,0.0003041,2]
[322166044,1712860254337,-1294.56,0.0003041,2]
[322166045,1712860254346,-570.74,0.0003041,2]
[322166046,1712860254355,-1322.98,0.0003041,2]
[322166047,1712860254364,-608.05,0.0003041,2]
[322166048,1712860254373,-500.0,0.0003041,2]
[322166049,1712860254383,-500.0,0.0003041,2]
[322166050,1712860254392,-1844.52,0.0003041,2]
[322166051,1712860254401,-1047.4,0.0003041,2]
[322166052,1712860254410,-500.0,0.0003041,2]
[322166053,1712860254419,-920.88,0.0003041,2]
[322166054,1712860254428,-500.0,0.0003041,2]
[322166055,1712860254438,-500.0,0.0003041,2]
[322166056,1712860254447,-500.0,0.0003041,2]
[322166057,1712860254455,-327.34419666,0.0003041,2]
[322166058,1712860254500,-172.65580334,0.0003041,2]
[322166059,1712860254511,-1778.06,0.0003041,2]
[322166060,1712860254520,-1307.28,0.0003041,2]
[322166061,1712860254529,-1737.02,0.0003041,2]
[322166062,1712860254539,-500.0,0.0003041,2]
[322166063,1712860254550,-500.0,0.0003041,2]
[322166064,1712860254560,-500.0,0.0003041,2]
[322166065,1712860254571,-516.26790245,0.0003041,2]
[322166066,1712860254580,-500.0,0.0003041,2]
[322166067,1712860254589,-411.21979856,0.0003041,2]
[322166068,1712860254600,-500.0,0.0003041,2]
[322166069,1712860254610,-1255.22,0.0003041,2]
[322166070,1712860254619,-632.97,0.0003041,2]
[322166071,1712860254630,-500.0,0.0003041,2]
[322166072,1712860254639,-500.0,0.0003041,2]
[322166073,1712860254649,-500.0,0.0003041,2]
[322166074,1712860254660,-2284.42,0.0003041,2]
[322166075,1712860254670,-500.0,0.0003041,2]
[322166076,1712860254682,-500.0,0.0003041,2]
[322166077,1712860254692,-756.65,0.0003041,2]
[322166078,1712860254702,-500.0,0.0003041,2]
[322166079,1712860254712,-2106.09,0.0003041,2]
[322166080,1712860254721,-500.0,0.0003041,2]
[322166081,1712860254732,-500.0,0.0003041,2]
[322166082,1712860254743,-1806.81,0.0003041,2]
[322166083,1712860254752,-560.42,0.0003041,2]
[322166084,1712860254761,-2241.87,0.0003041,2]
[322166085,1712860254771,-500.0,0.0003041,2]
[322166086,1712860254782,-500.0,0.0003041,2]
[322166087,1712860254793,-500.0,0.0003041,2]
[322166088,1712860254803,-500.0,0.0003041,2]
[322166089,1712860254813,-500.0,0.0003041,2]
[322166090,1712860254825,-1311.26,0.0003041,2]
[322166091,1712860254838,-500.0,0.0003041,2]
[322166092,1712860254848,-4516.52,0.0003041,2]
[322166093,1712860254859,-1580.26,0.0003041,2]
[322166094,1712860254870,-500.0,0.0003041,2]
[322166095,1712860254880,-500.0,0.0003041,2]
[322166096,1712860254889,-500.0,0.0003041,2]
[322166097,1712860254901,-500.0,0.0003041,2]
[322166098,1712860254911,-3602.7,0.0003041,2]
[322166099,1712860254920,-1093.47,0.0003041,2]
[322166100,1712860254930,-500.0,0.0003041,2]
[322166101,1712860254941,-19358.79,0.0003041,2]
[322166102,1712860254952,-1253.22,0.0003041,2]
[322166103,1712860254962,-500.0,0.0003041,2]
[322166104,1712860254974,-500.0,0.0003041,2]
[322166105,1712860254985,-848.76,0.0003041,2]
[322166106,1712860254995,-500.0,0.0003041,2]
[322166107,1712860255005,-500.0,0.0003041,2]
[322166108,1712860255015,-29869.89588153,0.0003041,2]
[322166109,1712860255035,-3128.48411847,0.0003041,2]
[322166110,1712860255046,-3564.75,0.0003041,2]
[322166111,1712860255056,-9542.1,0.0003041,2]
[322166112,1712860255066,-500.0,0.0003041,2]
[322166113,1712860255089,-898.05,0.0003041,2]
[322166114,1712860255110,-633.63,0.0003041,2]
[322166115,1712860255133,-500.0,0.0003041,2]
[322166116,1712860255156,-500.0,0.0003041,2]
[322166117,1712860255180,-876.34,0.0003041,2]
[322166118,1712860255202,-500.0,0.0003041,2]
[322166119,1712860255222,-500.0,0.0003041,2]
[322166120,1712860255231,-500.0,0.0003041,2]
[322166121,1712860255241,-1438.29,0.0003041,2]
[322166122,1712860255251,-4029.0,0.0003041,2]
[322166123,1712860255262,-2836.75,0.0003041,2]
[322166124,1712860255273,-4129.72,0.0003041,2]
[322166125,1712860255283,-1816.33586832,0.0003041,2]
[322166126,1712860255298,-3623.81413168,0.0003041,2]
[322166127,1712860255309,-500.0,0.0003041,2]
[322166128,1712860255320,-723.98,0.0003041,2]
[322166129,1712860255331,-500.0,0.0003041,2]
[322166130,1712860255341,-500.0,0.0003041,2]
[322166131,1712860255350,-500.0,0.0003041,2]
[322166132,1712860255359,-705.64,0.0003041,2]
[322166133,1712860255368,-1178.02,0.0003041,2]
[322166134,1712860255378,-500.0,0.0003041,2]
[322166135,1712860255391,-648.07,0.0003041,2]
[322166136,1712860255401,-3031.21,0.0003041,2]
[322166137,1712860255411,-714.76,0.0003041,2]
[322166138,1712860255420,-1391.42,0.0003041,2]
[322166139,1712860255430,-1405.69,0.0003041,2]
[322166140,1712860255442,-1869.61,0.0003041,2]
[322166141,1712860255452,-500.0,0.0003041,2]
[322166142,1712860255463,-1044.22,0.0003041,2]
[322166143,1712860255481,-500.0,0.0003041,2]
[322166144,1712860255490,-1882.23,0.0003041,2]
[322166145,1712860255500,-3083.28,0.0003041,2]
[322166146,1712860255510,-500.0,0.0003041,2]
[322166147,1712860255522,-500.0,0.0003041,2]
[322166148,1712860255531,-500.0,0.0003041,2]
[322166149,1712860255541,-500.0,0.0003041,2]
[322166150,1712860255550,-500.0,0.0003041,2]
[322166151,1712860255560,-500.0,0.0003041,2]
[322166152,1712860255571,-2076.09,0.0003041,2]
[322166153,1712860255581,-500.0,0.0003041,2]
[322166154,1712860255591,-500.0,0.0003041,2]
[322166155,1712860255601,-3393.21,0.0003041,2]
[322166156,1712860255611,-500.0,0.0003041,2]
[322166157,1712860255622,-500.0,0.0003041,2]
[322166158,1712860255633,-751.87,0.0003041,2]
[322166159,1712860255645,-1407.29,0.0003041,2]
[322166160,1712860255656,-500.0,0.0003041,2]
[322166161,1712860255669,-1949.46,0.0003041,2]
[322166162,1712860255681,-500.0,0.0003041,2]
[322166163,1712860255692,-500.0,0.0003041,2]
[322166164,1712860255702,-500.0,0.0003041,2]
[322166165,1712860255711,-745.01,0.0003041,2]
[322166166,1712860255722,-500.0,0.0003041,2]
[322166167,1712860255731,-1311.71,0.0003041,2]
[322166168,1712860255740,-6306.54667337,0.0003041,2]
[322166169,1712860255754,-6793.05332663,0.0003041,2]
[322166170,1712860255764,-500.0,0.0003041,2]
[322166171,1712860255774,-500.0,0.0003041,2]
[322166172,1712860255783,-500.0,0.0003041,2]
[322166173,1712860255794,-4145.82,0.0003041,2]
[322166174,1712860255804,-3813.8,0.0003041,2]
[322166175,1712860255814,-1446.37,0.0003041,2]
[322166176,1712860255824,-2150.77,0.0003041,2]
[322166177,1712860255836,-1371.11,0.0003041,2]
[322166178,1712860255846,-2668.07,0.0003041,2]
[322166179,1712860255855,-1634.05,0.0003041,2]
[322166180,1712860255865,-500.0,0.0003041,2]
[322166181,1712860255875,-710.88,0.0003041,2]
[322166182,1712860255884,-7133.95,0.0003041,2]
[322166183,1712860255894,-500.0,0.0003041,2]
[322166184,1712860255903,-501.22,0.0003041,2]
[322166185,1712860255913,-500.0,0.0003041,2]
[322166186,1712860255923,-1466.45,0.0003041,2]
[322166187,1712860255934,-397.21681685,0.0003041,2]
[322166188,1712860255947,-24617.7721943,0.0003041,2]
[322166189,1712860255958,-15234.57574493,0.0003041,2]
[322166190,1712860255971,-15502.67524392,0.0003041,2]
[322166191,1712860255981,-500.0,0.0003041,2]
[322166192,1712860255991,-1367.03,0.0003041,2]
[322166193,1712860256000,-500.0,0.0003041,2]
[322166194,1712860256011,-2125.11,0.0003041,2]
[322166195,1712860256022,-4583.5,0.0003041,2]
[322166196,1712860256032,-500.0,0.0003041,2]
[322166197,1712860256044,-500.0,0.0003041,2]
[322166198,1712860256053,-2813.47,0.0003041,2]
[322166199,1712860256064,-553.52,0.0003041,2]
[322166200,1712860256074,-15075.71,0.0003041,2]
[322166201,1712860256086,-1118.44,0.0003041,2]
[322166202,1712860256097,-500.0,0.0003041,2]
[322166203,1712860256106,-767.16,0.0003041,2]
[322166204,1712860256117,-500.0,0.0003041,2]
[322166205,1712860256127,-1867.27435629,0.0003041,2]
[322166206,1712860256141,-2393.03564371,0.0003041,2]
[322166207,1712860256151,-2686.16,0.0003041,2]
[322166208,1712860256161,-2550.3,0.0003041,2]
[322166209,1712860256171,-16009.05,0.0003041,2]
[322166210,1712860256182,-500.0,0.0003041,2]
[322166211,1712860256192,-655.42,0.0003041,2]
[322166212,1712860256203,-2285.42,0.0003041,2]
[322166213,1712860256212,-500.0,0.0003041,2]
[322166214,1712860256222,-500.0,0.0003041,2]
[322166215,1712860256231,-11193.62,0.0003041,2]
[322166216,1712860256240,-817.5,0.0003041,2]
[322166217,1712860256249,-500.0,0.0003041,2]
[322166218,1712860256259,-648.3,0.0003041,2]
[322166219,1712860256268,-500.0,0.0003041,2]
[322166220,1712860256277,-2080.73,0.0003041,2]
[322166221,1712860256286,-779.32,0.0003041,2]
[322166222,1712860256296,-952.97,0.0003041,2]
[322166223,1712860256305,-1439.02,0.0003041,2]
[322166224,1712860256315,-4425.82,0.0003041,2]
[322166225,1712860256324,-3089.36,0.0003041,2]
[322166226,1712860256333,-6641.11,0.0003041,2]
[322166227,1712860256342,-500.0,0.0003041,2]
[322166228,1712860256351,-500.0,0.0003041,2]
[322166229,1712860256361,-4053.7,0.0003041,2]
[322166230,1712860256370,-2384.61,0.0003041,2]
[322166231,1712860256380,-934.1,0.0003041,2]
[322166232,1712860256391,-1498.34,0.0003041,2]
[322166233,1712860256401,-1093.92,0.0003041,2]
[322166234,1712860256412,-2016.79,0.0003041,2]
[322166235,1712860256422,-2123.08,0.0003041,2]
[322166236,1712860256431,-2484.46,0.0003041,2]
[322166237,1712860256440,-2433.54,0.0003041,2]
[322166238,1712860256450,-592.44,0.0003041,2]
[322166239,1712860256459,-500.0,0.0003041,2]
[322166240,1712860256470,-3005.94,0.0003041,2]
[322166241,1712860256481,-1481.27,0.0003041,2]
[322166242,1712860256491,-527.65,0.0003041,2]
[322166243,1712860256500,-840.88,0.0003041,2]
[322166244,1712860256511,-7333.07,0.0003041,2]
[322166245,1712860256521,-5185.14,0.0003041,2]
[322166246,1712860256530,-10343.05,0.0003041,2]
[322166247,1712860256540,-2564.47932756,0.0003041,2]
[322166248,1712860256556,-3274.27067244,0.0003041,2]
[322166249,1712860256567,-500.0,0.0003041,2]
[322166250,1712860256576,-3771.62,0.0003041,2]
[322166251,1712860256586,-500.0,0.0003041,2]
[322166252,1712860256595,-2464.61670941,0.0003041,2]
[322166253,1712860256608,-1014.72329059,0.0003041,2]
[322166254,1712860256617,-1973.01,0.0003041,2]
[322166255,1712860256627,-2102.52,0.0003041,2]
[322166256,1712860256636,-707.88,0.0003041,2]
[322166257,1712860256646,-742.27,0.0003041,2]
[322166258,1712860256655,-500.0,0.0003041,2]
[322166259,1712860256665,-500.0,0.0003041,2]
[322166260,1712860256674,-500.0,0.0003041,2]
[322166261,1712860256684,-500.0,0.0003041,2]
[322166262,1712860256693,-1041.81,0.0003041,2]
[322166263,1712860256703,-4049.36,0.0003041,2]
[322166264,1712860256713,-1054.16,0.0003041,2]
[322166265,1712860256722,-26788.95,0.0003041,2]
[322166266,1712860256732,-500.0,0.0003041,2]
[322166267,1712860256742,-1392.83,0.0003041,2]
[322166268,1712860256752,-1905.75,0.0003041,2]
[322166269,1712860256761,-516.64334294,0.0003041,2]
[322166270,1712860256771,-500.0,0.0003041,2]
[322166271,1712860256781,-1056.09,0.0003041,2]
[322166272,1712860256791,-11036.83,0.0003041,2]
[322166273,1712860256801,-3943.99,0.0003041,2]
[322166274,1712860256810,-677.84,0.0003041,2]
[322166275,1712860256820,-755.36,0.0003041,2]
[322166276,1712860256829,-1560.50278143,0.0003041,2]
[322166277,1712860257483,-391.86277295,0.00029783,2]
[322166278,1712860257496,-415.13722705,0.00029783,2]
[322166279,1712860257507,-500.0,0.00030136,2]
[322166280,1712860257519,-500.0,0.00030136,2]
[322166281,1712860257528,-2323.21721857,0.0003041,2]
[322166282,1712860257538,-1359.37,0.0003041,2]
[322166283,1712860257551,-2152.27,0.0003041,2]
[322166284,1712860257562,-500.0,0.0003041,2]
[322166285,1712860257571,-500.0,0.0003041,2]
[322166286,1712860257583,-2634.27,0.0003041,2]
[322166287,1712860257593,-500.0,0.0003041,2]
[322166288,1712860257603,-1276.96,0.0003041,2]
[322166289,1712860257614,-500.0,0.0003041,2]
[322166290,1712860257625,-2825.61,0.0003041,2]
[322166291,1712860257635,-2894.16,0.0003041,2]
[322166292,1712860257645,-500.0,0.0003041,2]
[322166293,1712860257655,-2741.54,0.0003041,2]
[322166294,1712860257665,-500.0,0.0003041,2]
[322166295,1712860257674,-794.02,0.0003041,2]
[322166296,1712860257685,-2221.94,0.0003041,2]
[322166297,1712860257696,-500.0,0.0003041,2]
[322166298,1712860257706,-4003.31,0.0003041,2]
[322166299,1712860257716,-7096.11,0.0003041,2]
[322166300,1712860257938,-500.0,0.0003041,2]
[322166301,1712860257957,-778.76,0.0003041,2]
[322166302,1712860257967,-1115.78,0.0003041,2]
[322166303,1712860257977,-20246.19,0.0003041,2]
[322166304,1712860257986,-3819.64,0.0003041,2]
[322166305,1712860257997,-3711.33,0.0003041,2]
[322166306,1712860258007,-1503.15,0.0003041,2]
[322166307,1712860258017,-349.57868878,0.0003041,2]
[322166309,1712860258896,-500.0,0.00030136,2]
[322166310,1712860258906,-425.08544235,0.00030136,2]
[322166311,1712860258917,-278.19131122,0.0003041,2]
[322166312,1712860258925,-2354.25714549,0.0003041,2]
[322166313,1712860258956,-5730.74285451,0.0003041,2]
[322166314,1712860258965,-640.95514988,0.0003041,2]
[322166315,1712860258976,-1453.84,0.0003041,2]
[322166316,1712860258985,-3684.29,0.0003041,2]
[322166317,1712860258995,-500.0,0.0003041,2]
[322166318,1712860259004,-1520.46,0.0003041,2]
[322166319,1712860259013,-1720.18,0.0003041,2]
[322166320,1712860259023,-3138.75,0.0003041,2]
[322166321,1712860259032,-535.86,0.0003041,2]
[322166322,1712860259041,-2931.04,0.0003041,2]
[322166323,1712860259052,-19747.98,0.0003041,2]
[322166324,1712860259062,-10661.06677907,0.0003041,2]
[322166325,1712860259073,-8906.07819565,0.0003041,2]
[322166326,1712860259087,-836.18502528,0.0003041,2]
[322166327,1712860259096,-500.0,0.0003041,2]
[322166328,1712860259105,-1377.14419681,0.0003041,2]
[322166329,1712860260313,-281.97714399,0.00030135,2]
[322166330,1712860260323,-53.27285986,0.00030136,2]
[322166331,1712860260407,-446.72714014,0.00030136,2]
[322166332,1712860260417,-500.0,0.00030136,2]
[322166333,1712860260425,-500.0,0.00030136,2]
[322166334,1712860260434,-171.63580319,0.0003041,2]
[322166335,1712860260443,-621.59,0.0003041,2]
[322166336,1712860260452,-959.57,0.0003041,2]
[322166337,1712860260461,-635.18898956,0.0003041,2]
[322166338,1712860260473,-500.0,0.0003041,2]
[322166339,1712860260482,-325.07514468,0.0003041,2]
[322166340,1712860260490,-500.0,0.0003041,2]
[322166341,1712860260499,-500.0,0.0003041,2]
[322166342,1712860260507,-9289.13,0.0003041,2]
[322166343,1712860260518,-2386.43,0.0003041,2]
[322166344,1712860260527,-3186.64,0.0003041,2]
[322166345,1712860260536,-500.0,0.0003041,2]
[322166346,1712860260546,-702.31,0.0003041,2]
[322166347,1712860260555,-3980.93,0.0003041,2]
[322166348,1712860260564,-4481.54,0.0003041,2]
[322166349,1712860260573,-4850.23,0.0003041,2]
[322166350,1712860260582,-500.0,0.0003041,2]
[322166351,1712860260594,-865.18,0.0003041,2]
[322166352,1712860260604,-676.89,0.0003041,2]
[322166353,1712860260613,-698.12,0.0003041,2]
[322166354,1712860260622,-500.0,0.0003041,2]
[322166355,1712860260630,-270.2408165,0.0003041,2]
[322166356,1712860260638,-666.94,0.0003041,2]
[322166357,1712860260647,-1156.69,0.0003041,2]
[322166358,1712860260656,-1831.70636686,0.0003041,2]
[322166359,1712860260669,-908.80363314,0.0003041,2]
[322166360,1712860260678,-1598.37,0.0003041,2]
[322166361,1712860260687,-554.12,0.0003041,2]
[322166362,1712860260696,-5760.92,0.0003041,2]
[322166363,1712860260705,-6147.94701729,0.0003041,2]
[322166364,1712860260773,-352.7727058,0.0003041,2]
[322166365,1712860260784,-544.31158541,0.0003041,2]
[322166366,1712860260795,-314.514,0.0003041,2]
[322166367,1712860266750,7005.21328238,0.000199,2]
[322166373,1712860356204,12994.78671762,0.000199,2]
[322166374,1712860356227,12982.0,0.000199,2]
[322166375,1712860356254,100.88930349,0.000199,2]
[322166376,1712860358959,295.82660405,0.000199,2]
[322166377,1712860359179,146.59866435,0.000199,2]
[322166378,1712860359201,7302.72162343,0.000199,2]
[322166379,1712860364604,265.99005763,0.000199,2]
[322166380,1712860373558,155.5067665,0.000199,2]
[322166381,1712860377928,155.56439644,0.000199,2]
[322166382,1712860433272,5470.2641704,0.000199,2]
[322166383,1712860669317,20188.96546364,0.000199,2]
[322166391,1712861251539,177.66,0.00028371,120]
[322166404,1712861431763,-325.09234905,0.00026425,2]
[322166405,1712861431774,-5961.24,0.00026426,2]
[322166406,1712861431783,-796.29,0.00026428,2]
[322166407,1712861431793,-780.29964509,0.00026857,2]
[322166408,1712861431808,-249.67009252,0.00027909,2]
[322166409,1712861431817,-250.0,0.00028185,2]
[322166410,1712861431827,-869.1,0.00028318,2]
[322166411,1712861431836,-410.8,0.00028328,2]
[322166412,1712861431846,-23900.0,0.00028339,2]
[322166413,1712861431855,-155.22,0.00028343,2]
[322166414,1712861431865,-202.85,0.00028343,2]
[322166415,1712861431878,-250.0,0.00028344,2]
[322166416,1712861431887,-250.0,0.00028373,2]
[322166417,1712861431897,-759.04,0.00028373,2]
[322166418,1712861431907,-150.0,0.00028421,2]
[322166419,1712861431916,-499.99,0.00028515,2]
[322166420,1712861431925,-6502.64,0.00028515,2]
[322166421,1712861431934,-150.0,0.00028522,2]
[322166422,1712861431943,-156.58,0.0002855,2]
[322166423,1712861431954,-240.96,0.00028559,2]
[322166424,1712861431964,-150.0,0.00028559,2]
[322166425,1712861431973,-156.58,0.00028561,2]
[322166426,1712861431982,-156.58,0.00028572,2]
[322166427,1712861431991,-150.0,0.00028576,2]
[322166428,1712861432001,-156.58,0.00028583,2]
[322166429,1712861432010,-156.58,0.00028594,2]
[322166430,1712861432020,-150.0,0.00028601,2]
[322166431,1712861432029,-156.58,0.00028604,2]
[322166432,1712861432038,-1500.0,0.00028612,2]
[322166433,1712861432049,-156.58,0.00028615,2]
[322166434,1712861432058,-156.58,0.00028626,2]
[322166435,1712861432067,-156.58,0.00028637,2]
[322166436,1712861432076,-150.0,0.00028646,2]
[322166437,1712861432086,-156.58,0.00028648,2]
[322166438,1712861432095,-150.0,0.0002865,2]
[322166439,1712861432104,-156.58,0.00028659,2]
[322166441,1712861432114,-156.58,0.0002867,2]
[322166443,1712861432124,-150.0,0.00028674,2]
[322166445,1712861432133,-156.58,0.00028681,2]
[322166447,1712861432143,-150.0,0.00028685,2]
[322166449,1712861432152,-796.29,0.00028692,2]
[322166451,1712861432162,-156.58,0.00028692,2]
[322166453,1712861432171,-150.0,0.0002874,2]
[322166455,1712861432181,-150.0,0.00028792,2]
[322166457,1712861432190,-157.92,0.00028793,2]
[322166459,1712861432199,-150.0,0.00028798,2]
[322166461,1712861432208,-1510.0,0.00028845,2]
[322166463,1712861432218,-150.0,0.00028864,2]
[322166465,1712861432227,-150.0,0.00028916,2]
[322166468,1712861432237,-150.0,0.00028924,2]
[322166471,1712861432246,-150.0,0.00028937,2]
[322166474,1712861432256,-1500.0,0.00028943,2]
[322166477,1712861432265,-1500.0,0.00029007,2]
[322166480,1712861432274,-150.0,0.00029007,2]
[322166482,1712861432283,-150.0,0.00029028,2]
[322166484,1712861432293,-1500.0,0.00029062,2]
[322166486,1712861432308,-155.22,0.00029081,2]
[322166487,1712861432317,-150.0,0.00029177,2]
[322166488,1712861432327,-150.0,0.00029184,2]
[322166489,1712861432336,-3325.0,0.000292,2]
[322166490,1712861432345,-150.0,0.00029214,2]
[322166491,1712861432354,-150.0,0.00029231,2]
[322166492,1712861432364,-150.0,0.0002934,2]
[322166493,1712861432374,-1500.0,0.00029364,2]
[322166494,1712861432383,-150.0,0.00029373,2]
[322166495,1712861432393,-150.0,0.00029411,2]
[322166496,1712861432404,-1500.0,0.00029422,2]
[322166497,1712861432414,-150.0,0.00029479,2]
[322166498,1712861432423,-150.0,0.0002949,2]
[322166499,1712861432432,-1000.69153671,0.000295,2]
[322166500,1712861432442,-621.07,0.00029505,2]
[322166501,1712861432451,-621.07,0.00029513,2]
[322166502,1712861432461,-150.0,0.00029514,2]
[322166503,1712861432470,-621.07,0.00029521,2]
[322166504,1712861432480,-621.07,0.00029529,2]
[322166505,1712861432489,-1000.0,0.00029529,2]
[322166506,1712861432498,-621.07,0.00029536,2]
[322166507,1712861432508,-621.07,0.00029544,2]
[322166508,1712861432518,-621.07,0.00029552,2]
[322166509,1712861432527,-167.72,0.00029556,2]
[322166510,1712861432536,-150.0,0.00029556,2]
[322166511,1712861432545,-621.07,0.0002956,2]
[322166512,1712861432560,-150.0,0.00029561,2]
[322166513,1712861432569,-621.07,0.00029567,2]
[322166514,1712861432579,-621.07,0.00029575,2]
[322166515,1712861432588,-150.0,0.00029583,2]
[322166516,1712861432597,-621.07,0.00029583,2]
[322166517,1712861432607,-621.07,0.00029591,2]
[322166518,1712861432616,-621.07,0.00029599,2]
[322166519,1712861432625,-621.07,0.00029606,2]
[322166520,1712861432634,-150.0,0.00029611,2]
[322166521,1712861432643,-621.07,0.00029614,2]
[322166522,1712861432653,-621.07,0.00029622,2]
[322166523,1712861432662,-621.07,0.0002963,2]
[322166524,1712861432671,-621.07,0.00029637,2]